[Event "Chessity Nationale Pupillendag 2019 - Groep G"]
[Site "Meppel, Netherlands"]
[Date "2019.06.29"]
[Round "3.2"]
[White "Barbier, Emma"]
[Black "Terlouw, Wouter"]
[Result "0-1"]
[TimeControl "15 min + 10 sec"]
[WhiteElo "633"]
[BlackElo "898"]

1. e4 {[%clk 00:15:18]} {[%emt 00:00:01]} c5 {[%clk 00:15:18]} {[%emt
00:00:02]} 2. Nf3 {[%clk 00:15:26]} {[%emt 00:00:02]} Nc6 {[%clk 00:15:27]}
{[%emt 00:00:02]} 3. Bb5 {[%clk 00:15:34]} {[%emt 00:00:03]} a6 {[%clk
00:15:35]} {[%emt 00:00:02]} 4. Bc4 {[%clk 00:15:36]} {[%emt 00:00:07]} b5
{[%clk 00:15:43]} {[%emt 00:00:03]} 5. Bd5 {[%clk 00:15:38]} {[%emt 00:00:02]}
e6 {[%clk 00:15:51]} {[%emt 00:00:07]} 6. Bxc6 {[%clk 00:15:46]} {[%emt
00:00:02]} dxc6 {[%clk 00:16:00]} {[%emt 00:00:01]} 7. O-O {[%clk 00:15:53]}
{[%emt 00:00:03]} g6 {[%clk 00:16:09]} {[%emt 00:00:02]} 8. Nc3 {[%clk
00:16:00]} {[%emt 00:00:03]} Bg7 {[%clk 00:16:15]} {[%emt 00:00:03]} 9. d3
{[%clk 00:16:07]} {[%emt 00:00:03]} Nf6 {[%clk 00:16:21]} {[%emt 00:00:04]} 10.
Bg5 {[%clk 00:16:13]} {[%emt 00:00:04]} O-O {[%clk 00:16:28]} {[%emt 00:00:04]}
11. Re1 {[%clk 00:16:21]} {[%emt 00:00:01]} Qc7 {[%clk 00:16:27]} {[%emt
00:00:11]} 12. e5 {[%clk 00:16:24]} {[%emt 00:00:08]} Nd5 {[%clk 00:16:34]}
{[%emt 00:00:03]} 13. h3 {[%clk 00:16:24]} {[%emt 00:00:10]} b4 {[%clk
00:16:33]} {[%emt 00:00:12]} 14. Nxd5 {[%clk 00:16:03]} {[%emt 00:00:30]} cxd5
{[%clk 00:16:38]} {[%emt 00:00:05]} 15. c3 {[%clk 00:16:06]} {[%emt 00:00:08]}
bxc3 {[%clk 00:16:34]} {[%emt 00:00:14]} 16. bxc3 {[%clk 00:16:14]} {[%emt
00:00:02]} Qa5 {[%clk 00:16:42]} {[%emt 00:00:02]} 17. Qd2 {[%clk 00:16:16]}
{[%emt 00:00:08]} Bd7 {[%clk 00:16:35]} {[%emt 00:00:17]} 18. Rab1 {[%clk
00:16:17]} {[%emt 00:00:09]} Rab8 {[%clk 00:16:39]} {[%emt 00:00:06]} 19. Rxb8
{[%clk 00:16:09]} {[%emt 00:00:18]} Rxb8 {[%clk 00:16:46]} {[%emt 00:00:03]} 20.
Nh4 {[%clk 00:15:35]} {[%emt 00:00:43]} Bb5 {[%clk 00:16:26]} {[%emt 00:00:31]}
21. Bf6 {[%clk 00:15:29]} {[%emt 00:00:17]} Ba4 {[%clk 00:16:08]} {[%emt
00:00:28]} 22. Qe3 {[%clk 00:15:08]} {[%emt 00:00:29]} Qxc3 {[%clk 00:16:08]}
{[%emt 00:00:11]} 23. Rc1 {[%clk 00:15:06]} {[%emt 00:00:09]} Qd4 {[%clk
00:15:56]} {[%emt 00:00:25]} 24. Qd2 {[%clk 00:14:45]} {[%emt 00:00:31]} Bxf6
{[%clk 00:15:27]} {[%emt 00:00:39]} 25. exf6 {[%clk 00:14:39]} {[%emt
00:00:15]} Qxf6 {[%clk 00:15:31]} {[%emt 00:00:06]} 26. Nf3 {[%clk 00:14:45]}
{[%emt 00:00:04]} Qb2 {[%clk 00:15:08]} {[%emt 00:00:33]} 27. Qxb2 {[%clk
00:14:32]} {[%emt 00:00:23]} Rxb2 {[%clk 00:15:14]} {[%emt 00:00:04]} 28. Rxc5
{[%clk 00:14:39]} {[%emt 00:00:02]} Rxa2 {[%clk 00:15:21]} {[%emt 00:00:04]} 29.
Rc8+ {[%clk 00:14:34]} {[%emt 00:00:14]} Kg7 {[%clk 00:15:29]} {[%emt
00:00:02]} 30. g4 {[%clk 00:14:37]} {[%emt 00:00:07]} Bb5 {[%clk 00:15:34]}
{[%emt 00:00:04]} 31. Ne1 {[%clk 00:14:32]} {[%emt 00:00:15]} Ra1 {[%clk
00:15:41]} {[%emt 00:00:04]} 32. Kf1 {[%clk 00:14:37]} {[%emt 00:00:06]} Bxd3+
{[%clk 00:15:48]} {[%emt 00:00:03]} 33. Kg2 {[%clk 00:14:41]} {[%emt 00:00:05]}
Rxe1 {[%clk 00:15:56]} {[%emt 00:00:03]} 34. f4 {[%clk 00:14:39]} {[%emt
00:00:12]} a5 {[%clk 00:16:02]} {[%emt 00:00:04]} 35. h4 {[%clk 00:14:46]}
{[%emt 00:00:03]} a4 {[%clk 00:16:10]} {[%emt 00:00:01]} 36. h5 {[%clk
00:14:50]} {[%emt 00:00:06]} a3 {[%clk 00:16:19]} {[%emt 00:00:02]} 37. g5
{[%clk 00:14:46]} {[%emt 00:00:13]} gxh5 {[%clk 00:16:23]} {[%emt 00:00:06]} 38.
Ra8 {[%clk 00:14:49]} {[%emt 00:00:08]} Re2+ {[%clk 00:16:29]} {[%emt
00:00:05]} 39. Kf3 {[%clk 00:14:54]} {[%emt 00:00:04]} a2 {[%clk 00:16:38]}
{[%emt 00:00:02]} 40. Kg3 {[%clk 00:14:59]} {[%emt 00:00:05]} Bc4 {[%clk
00:16:44]} {[%emt 00:00:04]} 41. Kf3 {[%clk 00:15:05]} {[%emt 00:00:03]} Re1
{[%clk 00:16:52]} {[%emt 00:00:02]} 42. Kf2 {[%clk 00:15:12]} {[%emt 00:00:03]}
a1=Q {[%clk 00:16:59]} {[%emt 00:00:04]} 43. Rxa1 {[%clk 00:15:18]} {[%emt
00:00:04]} Rxa1 {[%clk 00:17:06]} {[%emt 00:00:03]} 44. Kg3 {[%clk 00:15:25]}
{[%emt 00:00:03]} Re1 {[%clk 00:17:12]} {[%emt 00:00:04]} 45. Kf2 {[%clk
00:15:33]} {[%emt 00:00:02]} Re2+ {[%clk 00:17:21]} {[%emt 00:00:01]} 46. Kf3
{[%clk 00:15:42]} {[%emt 00:00:01]} d4 {[%clk 00:17:29]} {[%emt 00:00:01]} 47.
Kg3 {[%clk 00:15:48]} {[%emt 00:00:04]} h4+ {[%clk 00:17:38]} {[%emt 00:00:01]}
48. Kxh4 {[%clk 00:15:52]} {[%emt 00:00:06]} d3 {[%clk 00:17:46]} {[%emt
00:00:02]} 49. Kg3 {[%clk 00:15:59]} {[%emt 00:00:02]} d2 {[%clk 00:17:55]}
{[%emt 00:00:01]} 50. Kg4 {[%clk 00:16:08]} {[%emt 00:00:01]} d1=Q {[%clk
00:18:01]} {[%emt 00:00:03]} 51. Kg3 {[%clk 00:16:16]} {[%emt 00:00:03]} Re3+
{[%clk 00:18:09]} {[%emt 00:00:02]} 52. Kh4 {[%clk 00:16:20]} {[%emt 00:00:07]}
Bf1 {[%clk 00:17:56]} {[%emt 00:00:22]} 53. g6 {[%clk 00:16:18]} {[%emt
00:00:12]} Rh3+ {[%clk 00:18:04]} {[%emt 00:00:02]} 54. Kg5 {[%clk 00:16:26]}
{[%emt 00:00:02]} h6# {[%clk 00:18:05]} {[%emt 00:00:09]} 0-1

[Event "Chessity Nationale Pupillendag 2019 - Groep G"]
[Site "Meppel, Netherlands"]
[Date "2019.06.29"]
[Round "3.3"]
[White "Zecha, Oscar"]
[Black "Yantur, Arda"]
[Result "1-0"]
[TimeControl "15 min + 10 sec"]
[WhiteElo "802"]
[BlackElo "589"]

1. d4 {[%clk 00:15:19]} d5 {[%clk 00:15:19]} {[%emt 00:05:12]} 2. c4 {[%emt
00:00:04]} c6 {[%clk 00:15:26]} 3. Nc3 {[%clk 00:15:36]} Nf6 {[%clk 00:15:32]}
{[%emt 00:00:04]} 4. Bg5 {[%clk 00:15:44]} {[%emt 00:00:03]} Bf5 {[%clk
00:15:32]} {[%emt 00:00:10]} 5. Nf3 {[%clk 00:15:44]} {[%emt 00:00:10]} h6
{[%clk 00:15:40]} {[%emt 00:00:02]} 6. Bh4 {[%clk 00:15:50]} {[%emt 00:00:04]}
g5 {[%clk 00:15:48]} {[%emt 00:00:02]} 7. Bg3 {[%clk 00:15:59]} {[%emt
00:00:01]} Ne4 {[%clk 00:15:52]} {[%emt 00:00:06]} 8. Nxe4 {[%clk 00:15:55]}
{[%emt 00:00:15]} dxe4 {[%clk 00:16:00]} {[%emt 00:00:03]} 9. Nd2 {[%clk
00:15:50]} {[%emt 00:00:15]} Bg7 {[%clk 00:16:03]} {[%emt 00:00:06]} 10. Nb3
{[%clk 00:15:40]} {[%emt 00:00:21]} Nd7 {[%clk 00:15:48]} {[%emt 00:00:25]} 11.
e3 {[%clk 00:15:47]} {[%emt 00:00:02]} c5 {[%clk 00:15:41]} {[%emt 00:00:17]}
12. Qd2 {[%clk 00:15:21]} {[%emt 00:00:36]} h5 {[%clk 00:15:23]} {[%emt
00:00:29]} 13. h3 {[%clk 00:15:19]} {[%emt 00:00:11]} g4 {[%clk 00:15:09]}
{[%emt 00:00:24]} 14. h4 {[%clk 00:15:13]} {[%emt 00:00:17]} e5 {[%clk
00:15:01]} {[%emt 00:00:19]} 15. dxe5 {[%clk 00:15:13]} {[%emt 00:00:10]} Bxe5
{[%clk 00:15:05]} {[%emt 00:00:05]} 16. Bxe5 {[%clk 00:15:21]} {[%emt
00:00:03]} Nxe5 {[%clk 00:15:13]} {[%emt 00:00:01]} 17. Qxd8+ {[%clk 00:15:27]}
{[%emt 00:00:04]} Rxd8 {[%clk 00:15:21]} {[%emt 00:00:02]} 18. Nxc5 {[%clk
00:15:21]} {[%emt 00:00:16]} b6 {[%clk 00:15:26]} {[%emt 00:00:05]} 19. Nb3
{[%clk 00:15:15]} {[%emt 00:00:15]} Be6 {[%clk 00:15:29]} {[%emt 00:00:08]} 20.
c5 {[%clk 00:14:50]} {[%emt 00:00:36]} bxc5 {[%clk 00:15:25]} {[%emt 00:00:13]}
21. Nxc5 {[%clk 00:14:57]} {[%emt 00:00:04]} Bf5 {[%clk 00:15:25]} {[%emt
00:00:08]} 22. Bb5+ {[%clk 00:14:54]} {[%emt 00:00:15]} Kf8 {[%clk 00:15:12]}
{[%emt 00:00:22]} 23. Rd1 {[%clk 00:13:14]} {[%emt 00:01:50]} Nd3+ {[%clk
00:15:00]} {[%emt 00:00:22]} 24. Nxd3 {[%clk 00:13:22]} {[%emt 00:00:03]} exd3
{[%clk 00:15:05]} {[%emt 00:00:05]} 25. f3 {[%clk 00:12:49]} {[%emt 00:00:43]}
gxf3 {[%clk 00:15:00]} {[%emt 00:00:15]} 26. gxf3 {[%clk 00:12:58]} {[%emt
00:00:02]} Ke7 {[%clk 00:14:40]} {[%emt 00:00:30]} 27. e4 {[%clk 00:13:03]}
{[%emt 00:00:06]} Bd7 {[%clk 00:14:42]} {[%emt 00:00:07]} 28. Bxd3 {[%clk
00:13:00]} {[%emt 00:00:13]} Bc6 {[%clk 00:14:21]} {[%emt 00:00:31]} 29. Kf2
{[%clk 00:12:29]} {[%emt 00:00:41]} Rhg8 {[%clk 00:14:17]} {[%emt 00:00:14]} 30.
Bc4 {[%clk 00:12:23]} {[%emt 00:00:17]} Rxd1 {[%clk 00:13:50]} {[%emt
00:00:36]} 31. Rxd1 {[%clk 00:12:32]} Bd7 {[%clk 00:13:50]} {[%emt 00:00:11]}
32. Rg1 {[%clk 00:12:29]} {[%emt 00:00:13]} Rxg1 {[%clk 00:13:57]} {[%emt
00:00:03]} 33. Kxg1 {[%clk 00:12:38]} f5 {[%clk 00:14:05]} {[%emt 00:00:04]} 34.
e5 {[%clk 00:12:32]} {[%emt 00:00:16]} a5 {[%clk 00:14:10]} {[%emt 00:00:05]}
35. Kf2 {[%clk 00:12:35]} {[%emt 00:00:07]} Be6 {[%clk 00:14:15]} {[%emt
00:00:05]} 36. Bxe6 {[%clk 00:12:40]} {[%emt 00:00:05]} Kxe6 {[%clk 00:14:24]}
{[%emt 00:00:01]} 37. f4 {[%clk 00:12:47]} {[%emt 00:00:03]} Kd5 {[%clk
00:14:32]} {[%emt 00:00:02]} 38. Ke2 {[%clk 00:12:35]} {[%emt 00:00:22]} Ke6
{[%clk 00:14:29]} {[%emt 00:00:12]} 39. Kd3 {[%clk 00:12:42]} {[%emt 00:00:03]}
Kd5 {[%clk 00:14:32]} {[%emt 00:00:07]} 40. a3 {[%clk 00:12:31]} {[%emt
00:00:22]} a4 {[%clk 00:14:27]} {[%emt 00:00:15]} 41. e6 {[%clk 00:12:22]}
{[%emt 00:00:20]} Kxe6 {[%clk 00:14:34]} {[%emt 00:00:03]} 42. Kc4 {[%clk
00:12:31]} Kd6 {[%clk 00:14:41]} {[%emt 00:00:04]} 43. Kb4 {[%clk 00:12:39]}
{[%emt 00:00:03]} Kd5 {[%clk 00:14:50]} 44. Kxa4 {[%clk 00:12:47]} {[%emt
00:00:01]} Ke4 {[%clk 00:14:59]} {[%emt 00:00:01]} 45. b4 {[%clk 00:12:49]}
{[%emt 00:00:08]} Kxf4 {[%clk 00:15:07]} {[%emt 00:00:01]} 46. b5 {[%clk
00:12:58]} {[%emt 00:00:01]} Kg4 {[%clk 00:15:16]} {[%emt 00:00:01]} 47. b6
{[%clk 00:13:07]} {[%emt 00:00:01]} f4 {[%clk 00:15:25]} 48. b7 {[%clk
00:13:16]} {[%emt 00:00:01]} f3 {[%clk 00:15:34]} {[%emt 00:00:01]} 49. b8=Q
{[%clk 00:13:23]} {[%emt 00:00:03]} f2 {[%clk 00:15:41]} {[%emt 00:00:02]} 50.
Qb4 {[%clk 00:13:17]} {[%emt 00:00:16]} Kg3 {[%clk 00:15:49]} {[%emt 00:00:02]}
51. Qf8 {[%clk 00:13:02]} {[%emt 00:00:25]} Kg2 {[%clk 00:15:53]} {[%emt
00:00:06]} 52. Qg7+ {[%clk 00:12:50]} {[%emt 00:00:22]} Kf1 {[%clk 00:16:00]}
{[%emt 00:00:03]} 53. Kb4 {[%clk 00:12:54]} {[%emt 00:00:07]} Ke1 {[%clk
00:16:08]} {[%emt 00:00:02]} 54. Qe5+ {[%clk 00:12:59]} {[%emt 00:00:04]} Kf1
{[%clk 00:16:16]} {[%emt 00:00:02]} 55. a4 {[%clk 00:13:06]} {[%emt 00:00:04]}
Kg2 {[%clk 00:16:23]} {[%emt 00:00:02]} 56. Qg5+ {[%clk 00:13:15]} Kh3 {[%clk
00:16:31]} {[%emt 00:00:03]} 57. Qe3+ {[%clk 00:13:03]} {[%emt 00:00:22]} Kg2
{[%clk 00:16:39]} {[%emt 00:00:02]} 58. Qe2 {[%clk 00:13:06]} {[%emt 00:00:07]}
Kg1 {[%clk 00:16:47]} {[%emt 00:00:02]} 59. Qxf2+ {[%clk 00:13:00]} {[%emt
00:00:16]} Kxf2 {[%clk 00:16:55]} {[%emt 00:00:02]} 60. a5 {[%clk 00:13:09]}
{[%emt 00:00:02]} Kg3 {[%clk 00:17:04]} {[%emt 00:00:01]} 61. a6 {[%clk
00:13:18]} {[%emt 00:00:01]} Kxh4 {[%clk 00:17:12]} {[%emt 00:00:01]} 62. a7
{[%clk 00:13:27]} Kh3 {[%clk 00:17:21]} {[%emt 00:00:01]} 63. a8=Q {[%clk
00:13:35]} {[%emt 00:00:03]} Kh2 {[%clk 00:17:28]} {[%emt 00:00:02]} 64. Qh8
{[%clk 00:13:40]} {[%emt 00:00:05]} 1-0

[Event "Chessity Nationale Pupillendag 2019 - Groep G"]
[Site "Meppel, Netherlands"]
[Date "2019.06.29"]
[Round "3.4"]
[White "Rooijakkers, Liam"]
[Black "Syaf, Choky"]
[Result "1-0"]
[TimeControl "15 min + 10 sec"]
[WhiteElo "733"]
[BlackElo "511"]

1. e4 {[%emt 00:03:02]} c5 {[%clk 00:12:14]} {[%emt 00:00:29]} 2. Nf3 {[%clk
00:15:25]} {[%emt 00:00:03]} d6 {[%clk 00:12:23]} {[%emt 00:00:02]} 3. d4
{[%clk 00:15:31]} {[%emt 00:00:03]} Nc6 {[%clk 00:12:29]} {[%emt 00:00:05]} 4.
d5 {[%clk 00:15:24]} {[%emt 00:00:17]} Nb4 {[%clk 00:12:32]} {[%emt 00:00:06]}
5. Be3 {[%clk 00:15:21]} {[%emt 00:00:12]} Nf6 {[%clk 00:12:35]} {[%emt
00:00:09]} 6. Nbd2 {[%clk 00:15:21]} {[%emt 00:00:10]} g6 {[%clk 00:12:41]}
{[%emt 00:00:04]} 7. c3 {[%clk 00:15:06]} {[%emt 00:00:25]} Nc6 {[%clk
00:12:40]} {[%emt 00:00:11]} 8. dxc6 {[%clk 00:15:10]} {[%emt 00:00:06]} bxc6
{[%clk 00:12:46]} {[%emt 00:00:05]} 9. Qc2 {[%clk 00:15:04]} {[%emt 00:00:15]}
Bg7 {[%clk 00:12:50]} {[%emt 00:00:06]} 10. O-O-O {[%clk 00:15:06]} {[%emt
00:00:08]} Ng4 {[%clk 00:12:55]} {[%emt 00:00:05]} 11. h3 {[%clk 00:14:50]}
{[%emt 00:00:25]} Nxf2 {[%clk 00:13:03]} {[%emt 00:00:03]} 12. Bxf2 {[%clk
00:14:56]} {[%emt 00:00:04]} Qd7 {[%clk 00:13:03]} {[%emt 00:00:09]} 13. Nc4
{[%clk 00:14:59]} {[%emt 00:00:06]} O-O {[%clk 00:13:11]} {[%emt 00:00:04]} 14.
e5 {[%clk 00:14:54]} {[%emt 00:00:15]} Ba6 {[%clk 00:13:16]} {[%emt 00:00:06]}
15. exd6 {[%clk 00:14:54]} {[%emt 00:00:10]} exd6 {[%clk 00:13:23]} {[%emt
00:00:03]} 16. Nxd6 {[%clk 00:14:42]} {[%emt 00:00:21]} Bxf1 {[%clk 00:13:29]}
{[%emt 00:00:04]} 17. Rhxf1 {[%clk 00:14:49]} {[%emt 00:00:03]} Bf6 {[%clk
00:13:29]} {[%emt 00:00:10]} 18. Ne4 {[%clk 00:14:45]} {[%emt 00:00:16]} Qe7
{[%clk 00:13:32]} {[%emt 00:00:04]} 19. Bxc5 {[%clk 00:14:44]} {[%emt
00:00:13]} Qe6 {[%clk 00:13:40]} {[%emt 00:00:03]} 20. Bxf8 {[%clk 00:14:41]}
{[%emt 00:00:12]} Rxf8 {[%emt 00:00:03]} 21. Nxf6+ {[%clk 00:14:48]} {[%emt
00:00:01]} Qxf6 {[%clk 00:13:57]} {[%emt 00:00:03]} 22. Nd4 {[%clk 00:14:38]}
{[%emt 00:00:19]} Qe7 {[%clk 00:14:02]} {[%emt 00:00:04]} 23. Nxc6 {[%clk
00:14:44]} {[%emt 00:00:05]} Qc7 {[%clk 00:14:08]} {[%emt 00:00:03]} 24. Nd4
{[%clk 00:14:44]} {[%emt 00:00:11]} Rd8 {[%clk 00:14:05]} {[%emt 00:00:13]} 25.
Nb5 {[%clk 00:14:48]} {[%emt 00:00:07]} Qb6 {[%clk 00:14:12]} {[%emt 00:00:02]}
26. Rxd8+ {[%clk 00:14:54]} {[%emt 00:00:03]} Qxd8 {[%clk 00:14:19]} {[%emt
00:00:04]} 27. Qb3 {[%clk 00:14:54]} {[%emt 00:00:10]} a6 {[%clk 00:14:28]}
{[%emt 00:00:02]} 28. Qxf7+ {[%clk 00:15:01]} {[%emt 00:00:02]} Kh8 {[%clk
00:14:36]} {[%emt 00:00:03]} 29. Qf8+ {[%clk 00:15:10]} {[%emt 00:00:02]} Qxf8
{[%clk 00:14:44]} {[%emt 00:00:01]} 30. Rxf8+ {[%clk 00:15:19]} {[%emt
00:00:02]} Kg7 {[%clk 00:14:53]} {[%emt 00:00:01]} 31. Ra8 {[%clk 00:15:24]}
{[%emt 00:00:05]} Kf7 {[%clk 00:15:01]} {[%emt 00:00:02]} 32. Rxa6 {[%clk
00:15:32]} {[%emt 00:00:02]} Kg7 {[%clk 00:15:10]} {[%emt 00:00:01]} 33. Nc7
{[%clk 00:15:31]} {[%emt 00:00:09]} Kf7 {[%clk 00:15:18]} {[%emt 00:00:03]} 34.
Re6 {[%clk 00:15:36]} {[%emt 00:00:05]} Kg7 {[%clk 00:15:26]} {[%emt 00:00:02]}
35. a4 {[%clk 00:15:45]} {[%emt 00:00:02]} Kf7 {[%clk 00:15:35]} {[%emt
00:00:01]} 36. a5 {[%clk 00:15:54]} {[%emt 00:00:01]} Kg7 {[%clk 00:15:44]}
{[%emt 00:00:01]} 37. a6 {[%clk 00:16:03]} Kf7 {[%clk 00:15:53]} {[%emt
00:00:01]} 38. a7 {[%clk 00:16:13]} Kg7 {[%clk 00:16:02]} 39. h4 {[%clk
00:16:19]} {[%emt 00:00:02]} Kf7 {[%clk 00:16:10]} {[%emt 00:00:03]} 40. Re7+
{[%clk 00:16:03]} {[%emt 00:00:24]} Kxe7 {[%clk 00:16:18]} {[%emt 00:00:05]} 41.
a8=Q {[%clk 00:16:04]} {[%emt 00:00:04]} Kf7 {[%clk 00:16:27]} {[%emt
00:00:07]} 42. Qe8+ {[%clk 00:16:12]} {[%emt 00:00:02]} Kg7 {[%clk 00:16:36]}
{[%emt 00:00:01]} 43. h5 {[%clk 00:16:19]} {[%emt 00:00:03]} Kh6 {[%clk
00:16:44]} {[%emt 00:00:02]} 44. g4 {[%clk 00:16:23]} {[%emt 00:00:06]} Kg5
{[%clk 00:16:50]} {[%emt 00:00:04]} 45. Qf8 {[%clk 00:16:27]} {[%emt 00:00:05]}
Kxg4 {[%clk 00:16:58]} {[%emt 00:00:03]} 46. Ne6 {[%clk 00:16:33]} {[%emt
00:00:03]} Kxh5 {[%clk 00:17:06]} {[%emt 00:00:03]} 47. Qf6 {[%clk 00:16:21]}
{[%emt 00:00:20]} Kh6 {[%clk 00:17:15]} {[%emt 00:00:04]} 48. Qg5# {[%clk
00:16:28]} {[%emt 00:00:03]} 1-0

[Event "Chessity Nationale Pupillendag 2019 - Groep G"]
[Site "Meppel, Netherlands"]
[Date "2019.06.29"]
[Round "3.5"]
[White "Formanoy, David"]
[Black "Gang, Kevin"]
[Result "0-1"]
[TimeControl "15 min + 10 sec"]
[WhiteElo "495"]
[BlackElo "691"]

1. e4 {[%clk 00:15:20]} {[%emt 00:00:24]} e5 {[%clk 00:15:20]} 2. Nf3 {[%clk
00:15:27]} {[%emt 00:00:02]} Nc6 {[%clk 00:15:29]} {[%emt 00:00:01]} 3. Bc4
{[%clk 00:15:35]} {[%emt 00:00:02]} Bc5 {[%clk 00:15:35]} {[%emt 00:00:03]} 4.
O-O {[%clk 00:15:42]} {[%emt 00:00:03]} Nf6 {[%clk 00:15:43]} {[%emt 00:00:02]}
5. Nc3 {[%clk 00:15:51]} {[%emt 00:00:01]} d6 {[%clk 00:15:52]} 6. d3 {[%clk
00:16:00]} {[%emt 00:00:02]} Bg4 {[%clk 00:16:01]} {[%emt 00:00:01]} 7. Bg5
{[%clk 00:16:08]} {[%emt 00:00:02]} Nd4 {[%clk 00:16:10]} {[%emt 00:00:02]} 8.
Nd5 {[%clk 00:16:07]} {[%emt 00:00:10]} Nxf3+ {[%clk 00:16:12]} {[%emt
00:00:07]} 9. gxf3 {[%clk 00:16:11]} {[%emt 00:00:07]} Bh3 {[%clk 00:16:21]}
{[%emt 00:00:01]} 10. Bxf6 {[%clk 00:16:05]} {[%emt 00:00:16]} gxf6 {[%clk
00:16:26]} {[%emt 00:00:04]} 11. Re1 {[%clk 00:16:06]} {[%emt 00:00:09]} Rg8+
{[%clk 00:16:34]} {[%emt 00:00:02]} 12. Kh1 {[%clk 00:16:10]} {[%emt 00:00:06]}
Bg2+ {[%clk 00:16:35]} {[%emt 00:00:09]} 13. Kg1 {[%clk 00:16:14]} {[%emt
00:00:06]} Bxf3+ {[%clk 00:16:42]} {[%emt 00:00:04]} 14. Kf1 {[%clk 00:16:17]}
{[%emt 00:00:07]} Bxd1 {[%clk 00:16:48]} {[%emt 00:00:03]} 15. Rexd1 {[%clk
00:16:20]} {[%emt 00:00:08]} c6 {[%clk 00:16:51]} {[%emt 00:00:08]} 16. Ne3
{[%clk 00:16:23]} {[%emt 00:00:07]} Bxe3 {[%clk 00:16:58]} {[%emt 00:00:02]} 17.
fxe3 {[%clk 00:16:30]} {[%emt 00:00:03]} f5 {[%emt 00:00:08]} 18. exf5 {[%clk
00:16:33]} Qg5 {[%clk 00:17:13]} {[%emt 00:00:04]} 19. d4 {[%clk 00:16:18]}
{[%emt 00:00:25]} Qg2+ {[%clk 00:17:19]} {[%emt 00:00:02]} 20. Ke1 {[%clk
00:16:25]} {[%emt 00:00:04]} Qg1+ {[%clk 00:17:24]} {[%emt 00:00:05]} 21. Kd2
{[%clk 00:16:32]} {[%emt 00:00:04]} Rg2+ {[%clk 00:17:31]} {[%emt 00:00:02]} 22.
Kd3 {[%clk 00:16:34]} {[%emt 00:00:09]} Qf2 {[%clk 00:17:34]} {[%emt 00:00:04]}
23. Rd2 {[%clk 00:16:36]} {[%emt 00:00:10]} Qxd2+ {[%clk 00:17:38]} {[%emt
00:00:03]} 24. Ke4 {[%clk 00:16:40]} {[%emt 00:00:09]} Rg4+ {[%clk 00:17:44]}
{[%emt 00:00:05]} 25. Kf3 {[%clk 00:16:47]} {[%emt 00:00:03]} Qg2# {[%clk
00:17:46]} {[%emt 00:00:07]} 0-1

[Event "Chessity Nationale Pupillendag 2019 - Groep G"]
[Site "Meppel, Netherlands"]
[Date "2019.06.29"]
[Round "4.1"]
[White "Gang, Kevin"]
[Black "Huang, Luna"]
[Result "0-1"]
[TimeControl "15 min + 10 sec"]
[WhiteElo "691"]
[BlackElo "955"]

1. d4 {[%clk 00:15:20]} {[%emt 00:18:11]} d5 {[%clk 00:15:19]} {[%emt
00:00:02]} 2. c4 {[%clk 00:15:29]} e6 {[%clk 00:15:28]} {[%emt 00:00:01]} 3.
cxd5 {[%clk 00:15:37]} {[%emt 00:00:02]} exd5 {[%clk 00:15:37]} {[%emt
00:00:01]} 4. Nc3 {[%clk 00:15:46]} Nf6 {[%clk 00:15:44]} {[%emt 00:00:03]} 5.
Nf3 {[%clk 00:15:54]} {[%emt 00:00:02]} b6 {[%clk 00:15:44]} {[%emt 00:00:10]}
6. b4 {[%clk 00:16:01]} {[%emt 00:00:04]} Bb7 {[%clk 00:15:34]} {[%emt
00:00:20]} 7. Bf4 {[%emt 00:00:20]} Bxb4 {[%clk 00:15:14]} {[%emt 00:00:27]} 8.
Qc2 {[%clk 00:15:56]} {[%emt 00:00:08]} Ne4 {[%clk 00:14:45]} {[%emt 00:00:39]}
9. Qa4+ {[%clk 00:15:55]} {[%emt 00:00:11]} Nc6 {[%clk 00:14:46]} {[%emt
00:00:09]} 10. Kd1 {[%clk 00:15:22]} {[%emt 00:00:42]} Nxc3+ {[%clk 00:14:52]}
{[%emt 00:00:04]} 11. Kc2 {[%clk 00:15:22]} {[%emt 00:00:10]} Nxa4 {[%clk
00:15:00]} {[%emt 00:00:03]} 12. g4 {[%clk 00:15:24]} {[%emt 00:00:07]} Qf6
{[%clk 00:14:32]} {[%emt 00:00:37]} 13. e3 {[%clk 00:15:31]} {[%emt 00:00:04]}
Qg6+ {[%clk 00:14:02]} {[%emt 00:00:38]} 14. Bd3 {[%clk 00:15:38]} {[%emt
00:00:05]} Qxg4 {[%clk 00:12:58]} {[%emt 00:01:14]} 15. Be2 {[%clk 00:15:41]}
{[%emt 00:00:08]} Qd7 {[%clk 00:12:16]} {[%emt 00:00:50]} 16. Ne5 {[%clk
00:15:48]} {[%emt 00:00:05]} Nxe5 {[%clk 00:12:22]} {[%emt 00:00:04]} 17. Bxe5
{[%clk 00:15:56]} {[%emt 00:00:01]} f6 {[%clk 00:11:32]} {[%emt 00:01:01]} 18.
Bf4 {[%clk 00:15:59]} {[%emt 00:00:06]} Qc6+ {[%clk 00:11:17]} {[%emt
00:00:24]} 19. Kd1 {[%clk 00:16:05]} {[%emt 00:00:04]} Nb2# {[%clk 00:11:19]}
{[%emt 00:00:09]} 0-1